bitfinex-derivatives/quotes_ETHF0:USTF0_20250919
["timestamp","ask_amount","ask_price","bid_price","bid_amount"]
[1758292580840,0.3099,4535.9,4535.8,0.91813]
[1758292581640,0.506,4535.9,4535.8,0.91813]
[1758292581841,0.3099,4535.9,4535.8,0.91813]
[1758292584037,0.3892,4536.6,4536.5,0.39656]
[1758292584240,1.58721393,4536.6,4536.5,0.1965]
[1758292584641,1.58721393,4536.6,4536.3,0.39659]
[1758292584841,0.6991,4536.4,4536.3,0.59309]
[1758292585045,0.94979231,4536.4,4536.3,0.39659]
[1758292585741,0.3099,4536.3,4536.2,3.6044]
[1758292585940,0.94979231,4536.3,4536.2,3.8009]
[1758292586840,0.94979231,4536.3,4536.2,0.5931]
[1758292587450,1.49106434,4536.3,4536.2,0.7931]
[1758292588050,1.10186434,4536.3,4536.2,4.1259]
[1758292588242,0.56059231,4536.3,4536.2,4.1259]
[1758292589949,0.25069231,4536.3,4536.2,4.1259]
[1758292590149,0.4176,4537.0,4536.9,0.92123]
[1758292590442,0.86862651,4537.0,4536.9,0.92123]
[1758292590651,1.41025811,4537.0,4536.9,0.79653]
[1758292590953,1.41025811,4537.0,4536.9,0.92123]
[1758292591248,0.66892651,4537.0,4536.9,0.92123]
[1758292592342,0.86862651,4537.0,4536.9,0.79653]
[1758292592545,1.06162651,4537.0,4536.9,0.79653]
[1758292593352,1.06162651,4537.0,4536.9,0.59653]
[1758292593644,1.06162651,4537.0,4536.8,0.39654]
[1758292593845,0.93532651,4536.9,4536.8,0.39654]
[1758292594048,0.93532651,4536.9,4536.8,0.59654]
[1758292594443,0.93532651,4536.9,4536.8,0.79654]
[1758292595648,0.93532651,4536.9,4536.8,0.59654]
[1758292596651,0.2913,4536.8,4536.7,3.2078]
[1758292596945,1.47719759,4536.8,4536.7,3.2078]
[1758292597149,5.47719759,4536.8,4536.2,0.39659]
[1758292597454,0.684,4536.4,4536.3,0.39659]
[1758292597649,1.47719759,4536.4,4536.3,0.39659]
[1758292597838,1.47719759,4536.4,4536.1,3.6264]
[1758292598149,0.684,4536.2,4536.1,3.6264]
[1758292598340,0.93532651,4536.2,4536.1,3.6264]
[1758292599443,0.93532651,4536.2,4536.1,3.2298]
[1758292600044,0.93532651,4536.2,4536.1,3.6264]
[1758292600345,1.47715482,4536.2,4536.1,0.4186]
[1758292600644,1.47715482,4536.2,4536.1,0.3966]
[1758292600849,0.684,4535.7,4535.6,3.60445]
[1758292601052,0.93532651,4535.7,4535.6,3.80445]
[1758292601246,0.93532651,4535.7,4535.6,4.00445]
[1758292602339,0.74232651,4535.7,4535.6,4.00445]
[1758292602544,0.2913,4536.1,4536.0,0.39661]
[1758292602744,0.742461,4536.1,4536.0,0.92131]
[1758292602944,0.742461,4536.1,4536.0,0.79661]
[1758292603552,0.935461,4536.1,4536.0,0.79661]
[1758292606350,0.742461,4536.1,4536.0,0.79661]
[1758292606655,0.742461,4536.1,4536.0,0.92131]
[1758292606957,0.742461,4536.1,4536.0,0.79661]
[1758292607151,0.491,4535.7,4535.6,4.00445]
[1758292607357,0.742461,4535.7,4535.6,4.00445]
[1758292607558,0.935461,4535.7,4535.6,4.00445]
[1758292608454,0.935461,4535.7,4535.6,3.80445]
[1758292608655,0.935461,4535.7,4535.6,3.4078]
[1758292608858,0.935461,4535.7,4535.6,3.2078]
[1758292609053,0.935461,4535.7,4535.6,3.60445]
[1758292609257,0.935461,4535.7,4535.6,3.80445]
[1758292609756,0.251461,4535.7,4535.6,3.60445]
[1758292609957,0.684,4535.7,4535.6,3.80445]
[1758292610161,0.935461,4535.7,4535.6,3.80445]
[1758292611862,0.935461,4535.7,4535.6,4.00445]
[1758292613165,0.251461,4535.7,4535.6,4.12915]
[1758292613455,0.6173,4536.0,4535.9,0.79662]
[1758292613650,1.06220218,4536.0,4535.9,0.79662]
[1758292613852,0.86920218,4536.0,4535.9,0.79662]
[1758292614060,0.86920218,4536.0,4535.9,0.92132]
[1758292614261,0.3927,4535.7,4535.6,3.2078]
[1758292614458,0.93590218,4535.7,4535.6,3.80445]
[1758292614761,0.93590218,4535.7,4535.6,4.00445]
[1758292616067,0.74290218,4535.7,4535.6,4.12915]
[1758292616363,0.54320218,4535.7,4535.6,4.12915]
[1758292617058,0.4176,4536.0,4535.6,4.12915]
[1758292617260,0.2913,4536.0,4535.9,0.92132]
[1758292617563,0.54323305,4536.0,4535.9,0.92132]
[1758292618863,0.86663305,4536.0,4535.9,0.92132]
[1758292619259,0.86663305,4536.0,4535.9,0.79662]
[1758292619767,1.05953305,4536.0,4535.9,0.79662]
[1758292620663,0.66083305,4536.0,4535.9,0.92172]
[1758292620865,0.86663305,4536.0,4535.9,0.79662]
[1758292621360,0.86663305,4536.0,4535.9,0.92172]
[1758292621561,0.66083305,4536.0,4535.9,0.92172]
[1758292622170,0.86663305,4536.0,4535.9,0.92172]
[1758292622363,0.66083305,4536.0,4535.9,0.92172]
[1758292622563,0.86663305,4536.0,4535.9,0.92172]
[1758292623068,0.86663305,4536.0,4535.9,0.79662]
[1758292623260,1.05953305,4536.0,4535.9,0.79662]
[1758292624167,0.86663305,4536.0,4535.9,0.92172]
[1758292624768,0.66083305,4536.0,4535.9,0.92172]
[1758292625156,0.25193305,4536.0,4535.9,0.92172]
[1758292625563,0.25193305,4536.0,4535.9,1.14572]
[1758292626366,1.07543305,4536.0,4535.9,1.02062]
[1758292626762,1.07543305,4536.0,4535.9,0.79662]
[1758292627758,1.07543305,4536.0,4535.9,0.59662]
[1758292627961,1.07543305,4536.0,4535.9,0.91802]
[1758292627962,0.55913305,4536.0,4535.9,0.91802]
[1758292631973,0.88253305,4536.0,4535.9,0.79292]
[1758292632570,1.07543305,4536.0,4535.9,0.79292]
[1758292632868,0.88253305,4536.0,4535.9,0.91802]
[1758292633472,0.88253305,4536.0,4535.9,0.79292]
[1758292634267,0.67673305,4536.0,4535.9,0.79292]
[1758292634473,0.67673305,4536.0,4535.9,0.91802]
[1758292635670,0.88253305,4536.0,4535.9,0.79292]
[1758292637174,0.88253305,4536.0,4535.9,0.91802]
[1758292637875,0.67673305,4536.0,4535.9,0.91802]
[1758292638071,0.3072,4536.2,4536.1,0.3966]
[1758292638377,0.3072,4536.2,4536.1,4.3499]
[1758292639580,0.513,4536.2,4536.1,4.3499]
[1758292639877,0.513,4536.2,4536.1,4.2248]
[1758292640279,0.513,4536.2,4536.1,4.0008]
[1758292640476,0.7059,4536.2,4536.1,4.2248]
[1758292641276,0.7059,4536.2,4536.1,3.8045]
[1758292641980,0.7059,4536.2,4536.1,4.0008]
[1758292642779,0.3072,4536.2,4536.1,4.1259]
[1758292643180,0.4335,4536.5,4536.4,0.91808]
[1758292643382,0.6855776,4536.5,4536.4,0.91808]
[1758292644083,0.8913776,4536.5,4536.4,0.91808]
[1758292644482,0.8913776,4536.5,4536.4,0.79298]
[1758292644682,0.6855776,4536.5,4536.4,0.91808]
[1758292646084,0.8913776,4536.5,4536.4,0.91808]
[1758292646480,0.8913776,4536.5,4536.4,0.79298]
[1758292646685,1.0842776,4536.5,4536.4,0.39658]
[1758292647878,0.7059,4536.2,4536.1,3.6044]
[1758292648083,0.9579776,4536.2,4536.1,3.6044]
[1758292648886,0.9579776,4536.2,4536.1,3.8045]
[1758292650690,0.9579776,4536.2,4536.1,3.6044]
[1758292650890,0.9579776,4536.2,4536.1,3.2078]
[1758292651092,0.9579776,4536.2,4536.1,3.60441]
[1758292653594,0.9579776,4536.2,4536.1,4.00171]
[1758292656493,0.7650776,4536.2,4536.1,4.12681]
[1758292658700,0.7650776,4536.2,4536.1,4.12681]
[1758292658896,0.2520776,4536.2,4536.1,4.12681]
[1758292659199,0.2520776,4536.2,4536.1,4.35081]
[1758292659400,0.5540776,4536.2,4536.1,4.35081]
[1758292660295,0.7568776,4536.2,4536.1,4.35081]
[1758292661597,0.7568776,4536.2,4536.1,4.12681]
[1758292661801,0.9499776,4536.2,4536.1,4.22571]
[1758292662503,0.5540776,4536.2,4536.1,4.35081]
[1758292662705,0.9499776,4536.2,4536.1,3.4079]
[1758292662904,0.9499776,4536.2,4536.1,3.2078]
[1758292663295,0.9499776,4536.2,4536.1,3.6044]
[1758292663595,0.9499776,4536.2,4536.1,3.2078]
[1758292664002,0.9499776,4536.2,4536.1,3.6044]
[1758292665007,0.9499776,4536.2,4536.1,3.8045]
[1758292666410,0.9499776,4536.2,4536.1,4.0017]
[1758292667211,0.9499776,4536.2,4536.1,3.8045]
[1758292669411,0.7568776,4536.2,4536.1,4.1268]
[1758292669608,0.2520776,4536.2,4536.1,4.1268]
[1758292669914,0.2520776,4536.2,4536.1,4.3508]
[1758292671811,0.302,4536.8,4536.7,0.59665]
[1758292672115,1.0973027,4536.8,4536.7,4.12675]
[1758292672312,1.3001027,4536.8,4536.7,4.12675]
[1758292673112,1.3001027,4536.8,4536.7,4.00165]
[1758292674314,1.0973027,4536.8,4536.7,4.12675]
[1758292674812,0.55400227,4536.8,4536.7,4.12675]
[1758292675915,0.75680227,4536.8,4536.7,4.00165]
[1758292676118,1.49333087,4536.8,4536.7,3.2078]
[1758292676307,1.30023087,4536.8,4536.7,3.4079]
[1758292676509,1.30023087,4536.8,4536.7,3.80445]
[1758292676713,1.30023087,4536.8,4536.7,4.00165]
[1758292677819,1.49333087,4536.8,4536.7,4.00165]
[1758292679216,1.30023087,4536.8,4536.7,4.00165]
[1758292679519,0.25200227,4536.8,4536.7,4.12675]
[1758292680122,0.57220227,4536.8,4536.7,4.12675]
[1758292681521,0.97600227,4536.8,4536.7,4.00455]
[1758292682323,0.57220227,4536.8,4536.7,4.12965]
[1758292683322,0.77540227,4536.8,4536.7,4.12965]
[1758292683721,0.77540227,4536.8,4536.7,4.00455]
[1758292684313,0.97600227,4536.8,4536.7,4.00455]
[1758292684619,0.97600227,4536.8,4536.7,0.79675]
[1758292684825,0.8479,4536.5,4536.4,0.39658]
[1758292685126,1.09990227,4536.5,4536.4,0.39658]
[1758292685424,1.09990227,4536.5,4536.4,0.59378]
[1758292685618,0.4038,4536.3,4536.2,3.60439]
[1758292685823,0.97600227,4536.3,4536.2,3.80159]
[1758292686523,0.97600227,4536.3,4536.2,3.2078]
[1758292686926,0.97600227,4536.3,4536.2,3.60439]
[1758292689723,0.97600227,4536.3,4536.2,3.80159]
[1758292690529,0.97600227,4536.3,4536.2,3.2078]
[1758292690829,0.8479,4536.0,4535.9,0.79392]
[1758292691029,1.09990227,4536.0,4535.9,0.79392]
[1758292692732,1.09990227,4536.0,4535.9,0.39662]
[1758292693225,1.09990227,4536.0,4535.9,0.59382]
[1758292693426,1.09990227,4536.0,4535.9,0.1972]
[1758292693622,1.64311675,4536.0,4535.8,0.39663]
[1758292693823,1.51921675,4535.9,4535.8,0.39663]
[1758292694025,1.51921675,4535.9,4535.8,0.59383]
[1758292694224,1.51921675,4535.9,4535.8,0.1972]
[1758292694225,0.97600227,4535.9,4535.8,0.1972]
[1758292694535,0.724,4535.4,4535.3,1.0348603]
[1758292694732,0.97600227,4535.4,4535.3,1.2349603]
[1758292695334,0.77540227,4535.4,4535.3,1.3600603]
[1758292695537,0.3271,4536.0,4535.9,0.3973]
[1758292695733,0.57955585,4536.0,4535.9,0.79392]
[1758292695928,0.57955585,4536.0,4535.9,0.3973]
[1758292696128,1.10035585,4536.0,4535.9,0.3973]
[1758292696334,1.10035585,4536.0,4535.6,3.2078]
[1758292696635,0.724,4535.7,4535.6,3.80165]
[1758292696838,0.97645585,4535.7,4535.6,3.80165]
[1758292697433,0.97645585,4535.7,4535.6,4.00175]
[1758292699635,0.25245585,4535.7,4535.6,4.12685]
[1758292700237,0.57265585,4535.7,4535.6,4.12685]
[1758292701737,0.57253568,4535.7,4535.6,4.12685]
[1758292702132,0.77573568,4535.7,4535.6,4.12685]
[1758292702337,0.77573568,4535.7,4535.6,4.00175]
[1758292702636,0.57253568,4535.7,4535.6,4.12685]
[1758292702837,0.57252403,4535.7,4535.6,4.12685]
[1758292704541,0.25232403,4535.7,4535.6,4.12685]
[1758292704842,0.97632403,4535.7,4535.6,4.00175]
[1758292709136,0.97632403,4535.7,4535.6,3.2078]
[1758292709544,0.97632403,4535.7,4535.6,3.60445]
[1758292710139,0.97632403,4535.7,4535.6,3.2078]
[1758292710440,1.19680403,4535.7,4535.6,3.2078]
[1758292710740,0.97632403,4535.7,4535.6,3.2078]
[1758292711143,0.97632403,4535.7,4535.5,0.39666]
[1758292711446,0.96922403,4535.6,4535.5,0.39666]
[1758292712643,0.525,4535.5,4535.4,0.022]
[1758292712836,1.09332403,4535.5,4535.4,0.022]
[1758292713039,1.09332403,4535.5,4535.4,0.39667]
[1758292715548,1.09332403,4535.5,4535.4,0.59657]
[1758292716942,1.09332403,4535.5,4535.4,0.39667]
[1758292717144,1.09332403,4535.5,4535.3,0.4409803]
[1758292717449,1.51327687,4535.4,4535.3,0.8376503]
[1758292717842,1.51327687,4535.4,4535.3,1.0375503]
[1758292718049,0.96922403,4535.4,4535.3,1.0375503]
[1758292718644,1.5132516,4535.4,4535.3,1.0375503]
[1758292719646,1.5132516,4535.4,4535.3,0.4409803]
[1758292720648,1.5132516,4535.4,4535.3,0.8376503]
[1758292720848,1.5132516,4535.4,4535.3,0.4409803]
[1758292722247,0.4009,4534.6,4534.5,3.2078]
[1758292722452,1.19322403,4534.6,4534.5,3.2078]
[1758292724550,1.19322403,4534.6,4534.5,3.4077]
[1758292726650,1.19322403,4534.6,4534.5,3.99704]
[1758292728055,1.19322403,4534.6,4534.5,3.4077]
[1758292728249,1.19322403,4534.6,4534.5,3.99704]
[1758292729658,1.19322403,4534.6,4534.5,3.2078]
[1758292732058,1.19322403,4534.6,4534.5,3.60454]
[1758292732858,1.19322403,4534.6,4534.5,3.80444]
[1758292733261,0.77202403,4534.6,4534.5,4.12204]
[1758292733454,0.96922403,4534.6,4534.5,3.99704]
[1758292734559,0.96922403,4534.6,4534.5,3.6003]
[1758292735660,0.96922403,4534.6,4534.5,3.99704]
[1758292735855,0.96922403,4534.6,4534.0,3.60458]
[1758292736061,0.224,4534.7,4534.0,3.99708]
[1758292736062,0.5197,4534.1,4534.0,3.99708]
[1758292736258,0.7169,4534.1,4534.0,3.6003]
[1758292736463,0.96975771,4534.1,4534.0,3.99708]
[1758292740159,0.96975771,4534.1,4534.0,0.78928]
[1758292741764,0.96975771,4534.1,4534.0,3.99708]
[1758292741967,0.25285771,4534.1,4534.0,4.12248]
[1758292745264,0.5313,4534.9,4534.8,0.79292]
[1758292745565,0.99316888,4534.9,4534.8,2.10628424]
[1758292745758,0.99316888,4534.9,4534.8,1.98085863]
[1758292746564,0.99316888,4534.9,4534.8,0.79292]
[1758292747368,0.76916888,4534.9,4534.8,0.79292]
[1758292747562,0.25326888,4534.9,4534.8,0.91832]
[1758292748771,0.56056888,4534.9,4534.8,0.91832]
[1758292748963,0.25326888,4534.9,4534.8,0.91832]
[1758292749162,0.56056888,4534.9,4534.8,0.91832]
[1758292749367,0.25326888,4534.9,4534.8,0.91832]
[1758292749768,0.56056888,4534.9,4534.8,0.91832]
[1758292753468,0.98056888,4534.9,4534.8,0.39672]
[1758292754169,0.98056888,4534.9,4534.8,0.59742]
[1758292754766,0.98056888,4534.9,4534.8,0.79292]
[1758292756471,0.98056888,4534.9,4534.8,0.59742]
[1758292756775,0.98056888,4534.9,4534.8,0.39672]
[1758292757467,0.98056888,4534.9,4534.8,0.59742]
[1758292757867,0.98056888,4534.9,4534.8,0.79292]
[1758292758571,0.98242858,4534.9,4534.8,0.39672]
[1758292758774,0.98242858,4534.9,4534.8,0.59742]
[1758292758966,0.98242858,4534.9,4534.8,0.79292]
[1758292759276,0.98242858,4534.9,4534.8,0.91832]
[1758292759578,0.98242858,4534.9,4534.8,0.79292]
[1758292760374,0.98242858,4534.9,4534.8,0.91832]
[1758292760569,0.98242858,4534.9,4534.8,0.79292]
[1758292764990,0.77102858,4534.9,4534.8,0.91832]
[1758292765485,0.98242858,4534.9,4534.8,0.79292]
[1758292766488,0.3073,4534.8,4534.6,3.2078]
[1758292766683,0.25512858,4534.7,4534.6,3.80523]
[1758292766885,0.98242858,4534.7,4534.6,3.80523]
[1758292767190,0.98242858,4534.7,4534.6,4.00073]
[1758292768283,0.98242858,4534.7,4534.6,4.12613]
[1758292768788,0.77102858,4534.7,4534.6,4.12613]
[1758292769090,0.77102858,4534.7,4534.6,4.00073]
[1758292770289,0.96982858,4534.7,4534.6,4.00073]
[1758292770881,0.96982858,4534.7,4534.6,3.2078]
[1758292771279,0.96982858,4534.7,4534.6,3.60453]
[1758292771790,0.96982858,4534.7,4534.6,3.79983]
[1758292771993,0.96982858,4534.7,4534.6,4.00003]
[1758292772895,0.77102858,4534.7,4534.6,4.12513]
[1758292774691,0.96982858,4534.7,4534.6,4.00003]
[1758292775195,0.56242858,4534.7,4534.6,4.12513]
[1758292777892,0.77152858,4534.7,4534.6,4.12513]
[1758292779600,0.77152858,4534.7,4534.6,4.00003]
[1758292781303,0.56242858,4534.7,4534.6,4.12513]
[1758292782399,0.25512858,4534.7,4534.6,4.12513]
[1758292782705,0.4277,4535.5,4535.4,0.3955]
[1758292783002,0.55913006,4535.5,4535.4,4.12506]
[1758292783502,0.68663006,4535.5,4535.4,4.12506]
[1758292784198,1.09453006,4535.5,4535.4,3.99996]
[1758292784403,1.09453006,4535.5,4535.4,3.60446]
[1758292784901,1.09453006,4535.5,4535.4,3.79976]
[1758292786302,1.08585572,4535.5,4535.4,3.79976]
[1758292787202,1.08585572,4535.5,4535.4,3.4031]
[1758292787403,1.08585572,4535.5,4535.4,3.2078]
[1758292788804,1.08585572,4535.5,4535.4,3.60446]
[1758292789208,0.88705572,4535.5,4535.4,4.12506]
[1758292789408,1.08585572,4535.5,4535.4,3.99996]
[1758292790498,1.08585572,4535.5,4535.4,4.12506]
[1758292790706,0.55045572,4535.5,4535.4,4.12506]
[1758292791108,0.67795572,4535.5,4535.4,4.12506]
[1758292791407,0.88705572,4535.5,4535.4,4.12506]
[1758292791802,0.88705572,4535.5,4535.4,3.99996]
[1758292792800,0.55045572,4535.5,4535.4,4.12506]
[1758292793310,0.88705572,4535.5,4535.4,4.12506]
[1758292793915,1.08585572,4535.5,4535.4,3.99996]
[1758292795308,1.08585572,4535.5,4535.4,4.12506]
[1758292795811,0.88705572,4535.5,4535.4,4.12506]
[1758292796514,0.88705572,4535.5,4535.4,3.99996]
[1758292796713,1.08585572,4535.5,4535.4,3.99996]
[1758292797811,1.08585572,4535.5,4535.4,3.60446]
[1758292798016,1.3061723,4535.5,4535.0,0.022]
[1758292798209,0.7115,4535.1,4535.0,0.022]
[1758292798405,0.9581823,4535.1,4535.0,0.022]
[1758292798612,0.1188,4535.0,4534.8,0.39671]
[1758292798915,0.9690823,4534.9,4534.8,0.59661]
[1758292801118,0.9690823,4534.9,4534.8,0.39671]
[1758292801418,0.9690823,4534.9,4534.8,0.59661]
[1758292802715,0.9690823,4534.9,4534.8,0.1999]
[1758292802922,0.9690823,4534.9,4534.6,0.39673]
[1758292803118,0.7224,4534.7,4534.6,0.39673]
[1758292803313,0.9690823,4534.7,4534.6,0.59663]
[1758292804216,0.9690823,4534.7,4534.6,0.1999]
[1758292804818,0.9690823,4534.7,4534.6,0.3998]
[1758292805119,0.246633,4534.7,4534.6,0.92153]
[1758292805818,3.2078,4535.8,4534.6,0.92153]
[1758292805819,0.8499,4535.5,4535.4,0.59656]
[1758292806023,1.61504378,4535.5,4535.4,0.59656]
[1758292806224,1.61504378,4535.5,4535.4,0.1999]
[1758292807121,1.61504378,4535.5,4535.4,0.3998]
[1758292807420,1.61504378,4535.5,4535.4,0.1999]
[1758292807616,0.7224,4535.4,4535.3,3.2078]
[1758292807921,1.48754378,4535.4,4535.3,3.4077]
[1758292808516,1.48754378,4535.4,4535.3,3.6076]
[1758292809424,1.48754378,4535.4,4535.3,4.00427]
[1758292809618,1.48754378,4535.4,4535.3,3.2078]
[1758292810117,0.7224,4534.9,4534.8,3.60451]
[1758292810323,0.96903726,4534.9,4534.8,3.80441]
[1758292810822,0.96903726,4534.9,4534.8,4.00431]
[1758292812425,0.75813449,4534.9,4534.8,4.12931]
[1758292812826,0.75813449,4534.9,4534.8,4.00431]
[1758292814925,0.96923449,4534.9,4534.8,4.00431]
[1758292817228,0.96923449,4534.9,4534.8,0.79651]
[1758292817426,0.3005,4534.8,4534.5,0.022]
[1758292817629,0.7224,4534.6,4534.5,0.022]
[1758292817925,0.96923449,4534.6,4534.3,3.2078]
[1758292818127,0.7224,4534.4,4534.3,3.2078]
[1758292818430,0.96923449,4534.4,4534.3,3.2078]
[1758292819823,0.1188,4534.0,4533.7,3.2078]
[1758292820027,0.5407,4534.0,4533.9,0.1999]
[1758292820234,0.78898991,4534.0,4533.9,0.59669]
[1758292820423,1.08941391,4534.0,4533.9,0.59669]
[1758292820629,1.08941403,4534.0,4533.9,0.59669]
[1758292821328,1.08941403,4534.0,4533.9,0.1999]
[1758292821530,1.08941403,4534.0,4533.7,3.6266]
[1758292821531,0.7224,4533.8,4533.7,3.6266]
[1758292821827,0.97061403,4533.8,4533.7,4.0264]
[1758292822218,0.7224,4533.8,4533.7,4.0264]
[1758292824430,0.7224,4533.8,4533.7,4.0044]
[1758292825226,0.97048384,4533.8,4533.7,3.2078]
[1758292825421,0.8412,4533.5,4533.3,0.39685]
[1758292825625,0.97048384,4533.4,4533.3,0.1999]
[1758292825930,0.97048384,4533.4,4533.3,0.59675]
[1758292826927,0.5113,4533.3,4533.2,0.39685]
[1758292827132,0.97048384,4533.3,4533.2,0.39685]
[1758292827331,0.66998384,4533.3,4533.1,3.2078]
[1758292827626,0.7224,4533.3,4533.2,0.39685]
[1758292827831,0.97035864,4533.3,4533.2,0.39685]
[1758292829226,0.97035864,4533.3,4533.2,0.79715]
[1758292830931,0.97035864,4533.3,4533.2,0.39685]
[1758292831929,0.3061,4533.2,4533.0,0.022]
[1758292832135,0.95705864,4533.1,4533.0,0.41887]
[1758292832537,0.95705864,4533.1,4533.0,0.39687]
[1758292833933,0.8279,4532.5,4532.4,0.39692]
[1758292835649,0.8279,4532.5,4532.4,0.79772]
[1758292836234,0.8279,4532.5,4532.4,0.59732]
[1758292839140,0.8279,4532.5,4532.4,0.39692]
[1758292840234,0.8279,4532.5,4532.3,0.39692]
[1758292840539,0.7091,4532.4,4532.3,0.39692]
[1758292842338,0.7091,4532.4,4532.2,0.022]
[1758292842529,0.7091,4532.4,4531.2,0.99256]
[1758292842530,0.3061,4531.9,4531.2,0.39703]
[1758292842735,0.7091,4531.2,4531.1,0.79784]
[1758292843139,0.5113,4531.2,4531.1,0.92304]
[1758292844042,0.5113,4531.2,4531.1,0.79784]
[1758292845642,0.7091,4531.2,4531.1,0.79784]
[1758292846343,0.3061,4531.2,4531.1,0.92304]
[1758292846545,0.3061,4531.5,4531.4,0.92301]
[1758292846839,0.8279,4531.5,4531.4,0.79781]
[1758292847037,0.1188,4532.0,4531.0,3.2078]
[1758292847038,0.6301,4532.0,4531.9,0.79777]
[1758292847342,1.10025716,4532.0,4531.9,0.79777]
[1758292847843,0.87725716,4532.0,4531.9,0.79777]
[1758292848143,1.10025716,4532.0,4531.9,0.79777]
[1758292848545,0.87725716,4532.0,4531.9,0.79777]
[1758292848747,1.10025716,4532.0,4531.9,0.79777]
[1758292849143,0.87725716,4532.0,4531.9,0.79777]
[1758292849347,1.29805716,4532.0,4531.9,0.39697]
[1758292849938,1.29805716,4532.0,4531.9,0.59737]
[1758292850437,1.07505716,4532.0,4531.9,0.79777]
[1758292850744,0.87725716,4532.0,4531.9,0.92297]
[1758292850944,0.87725716,4532.0,4531.9,0.79777]
[1758292852147,0.87725716,4532.0,4531.9,0.92297]
[1758292853246,0.87725716,4532.0,4531.9,0.79777]
[1758292853640,0.87725716,4532.0,4531.9,0.92297]
[1758292854041,0.67205716,4532.0,4531.9,0.92297]
[1758292854245,0.24715716,4532.0,4531.9,0.92297]
[1758292854440,0.5291,4532.4,4532.3,0.39693]
[1758292854645,0.7767353,4532.4,4532.3,4.13073]
[1758292855045,0.9819353,4532.4,4532.3,4.13073]
[1758292855246,0.7589353,4532.4,4532.3,4.13073]
[1758292855547,0.55387936,4532.4,4532.3,4.13073]
[1758292856246,0.75907936,4532.4,4532.3,4.00553]
[1758292856448,0.75907936,4532.4,4532.3,4.13073]
[1758292856642,0.95687936,4532.4,4532.3,3.60473]
[1758292856847,0.55387936,4532.4,4532.3,4.00553]
[1758292857047,0.95687936,4532.4,4532.3,4.00553]
[1758292857249,0.55387936,4532.4,4532.3,4.00553]
[1758292857445,0.75907936,4532.4,4532.3,4.13073]
[1758292857646,0.55387936,4532.4,4532.3,4.13073]
[1758292861749,0.76097936,4532.4,4532.3,4.00553]
[1758292861954,0.95507936,4532.4,4532.3,4.00553]
[1758292862750,0.95507936,4532.4,4532.3,3.80513]
[1758292864253,0.95507936,4532.4,4532.2,0.39694]
[1758292864549,0.95297936,4532.3,4532.2,0.39694]
[1758292864755,0.64897936,4532.3,4532.0,0.39696]
[1758292864945,0.3412,4532.5,4532.0,0.39696]
[1758292864946,0.7052,4532.1,4532.0,0.39696]
[1758292865145,0.2071,4531.9,4531.8,0.39697]
[1758292865350,0.95297936,4531.9,4531.8,0.39697]
[1758292865548,0.95297936,4531.9,4531.8,0.59697]
[1758292866651,0.95297936,4531.9,4531.8,0.79387]
[1758292866847,0.95297936,4531.9,4531.8,0.91887]
[1758292867456,0.95297936,4531.9,4531.8,0.39697]
[1758292867954,0.95297936,4531.9,4531.8,0.59697]
[1758292870355,0.95297936,4531.9,4531.8,0.79387]
[1758292871956,0.64897936,4531.9,4531.7,3.60478]
[1758292872156,0.95297936,4531.8,4531.7,3.60478]
[1758292873252,0.95297936,4531.8,4531.7,0.59698]
[1758292873561,0.75887936,4531.8,4531.7,4.12668]
[1758292874559,0.55177936,4531.8,4531.7,4.12668]
[1758292874759,0.304,4532.2,4532.1,0.79385]
[1758292874955,0.55224732,4532.2,4532.1,0.91885]
[1758292876261,0.24824732,4532.2,4532.1,0.91885]
[1758292877355,0.304,4532.8,4532.7,0.5219]
[1758292877556,0.55230472,4532.8,4532.7,3.7297]
[1758292877760,0.55230441,4532.8,4532.7,3.7297]
[1758292878162,0.55230441,4532.8,4532.7,4.1266]
[1758292881661,0.95350441,4532.8,4532.7,3.8047]
[1758292881857,0.95350441,4532.8,4532.7,4.0016]
[1758292882668,0.55230441,4532.8,4532.7,4.1266]
[1758292883163,0.75940441,4532.8,4532.7,4.0016]
[1758292883769,0.95350441,4532.8,4532.7,4.0016]
[1758292884663,0.95350441,4532.8,4532.7,0.7938]
[1758292884863,0.95350441,4532.8,4532.7,0.5969]
[1758292886267,0.95350441,4532.8,4532.7,3.8047]
[1758292886469,0.95350441,4532.8,4532.7,4.0016]
[1758292886967,0.55230441,4532.8,4532.7,4.1266]
[1758292889271,0.24830441,4532.8,4532.7,4.1266]
[1758292889666,0.54750441,4532.8,4532.7,4.1266]
[1758292890668,0.75500441,4532.8,4532.7,4.1266]
[1758292890967,0.75500441,4532.8,4532.7,4.0016]
[1758292898175,0.24830441,4532.8,4532.7,4.127]
[1758292898370,0.6255,4533.5,4533.4,0.79574]
[1758292898672,0.8737536,4533.5,4533.4,0.92114]
[1758292898872,0.8737536,4533.5,4533.4,0.79574]
[1758292899073,1.0852536,4533.5,4533.4,0.79574]
[1758292900269,1.0852536,4533.5,4533.4,0.59514]
[1758292900570,1.0852536,4533.5,4533.4,0.39684]
[1758292902374,1.0852536,4533.5,4533.4,0.59514]
[1758292905471,1.0852536,4533.5,4533.4,0.79574]
[1758292905672,0.8737536,4533.5,4533.4,0.92114]
[1758292906976,0.8705446,4533.5,4533.4,0.92114]
[1758292907375,0.5442446,4533.5,4533.4,0.92114]
[1758292908668,1.0812446,4533.5,4533.4,0.79574]
[1758292909076,1.0812446,4533.5,4533.4,0.59514]
[1758292909476,1.08111173,4533.5,4533.4,0.59514]
[1758292910776,1.08111173,4533.5,4533.4,0.39684]
[1758292910972,0.7182,4533.4,4533.3,3.2078]
[1758292911172,0.96311173,4533.4,4533.3,3.60464]
[1758292912880,0.96311173,4533.4,4533.3,0.39684]
[1758292913080,1.18611173,4533.4,4533.3,0.39684]
[1758292914483,0.96311173,4533.4,4533.3,0.59514]
[1758292914688,0.96311173,4533.4,4533.3,0.79574]
[1758292917180,0.96311173,4533.4,4533.3,0.69574]
[1758292917385,0.96313644,4533.4,4533.3,0.69574]
[1758292917685,0.75163644,4533.4,4533.3,0.82114]
[1758292918293,0.75163644,4533.4,4533.3,0.69574]
[1758292919796,0.75163644,4533.4,4533.3,0.82114]